[Event "*** SCC Grand Prix: Titled Tuesday Blitz"]
[Site "Chess.com"]
[Date "2020.08.25"]
[Round "4"]
[White "Reader777"]
[Black "dbrankovic68"]
[Result "0-1"]
[WhiteElo "2674"]
[BlackElo "2492"]
[TimeControl "180+1"]
[EndTime "10:41:55 PDT"]
[Termination "dbrankovic68 won by resignation"]

1. d4 {[%clk 0:03:00.9]} 1... Nf6 {[%clk 0:02:59.6]} 2. c4 {[%clk 0:03:01]} 2...
g6 {[%clk 0:02:59.7]} 3. Nc3 {[%clk 0:02:59.7]} 3... Bg7 {[%clk 0:03:00.2]} 4.
e4 {[%clk 0:02:58.4]} 4... d6 {[%clk 0:03:00.6]} 5. f4 {[%clk 0:02:58]} 5... O-O
{[%clk 0:03:00.9]} 6. Nf3 {[%clk 0:02:57.8]} 6... c5 {[%clk 0:03:00.8]} 7. d5
{[%clk 0:02:57.8]} 7... e5 {[%clk 0:03:01.3]} 8. Be2 {[%clk 0:02:52]} 8... exf4
{[%clk 0:02:58.8]} 9. Bxf4 {[%clk 0:02:51.2]} 9... Re8 {[%clk 0:02:59.1]} 10.
Qc2 {[%clk 0:02:31.5]} 10... Na6 {[%clk 0:02:50.5]} 11. a3 {[%clk 0:02:29.9]}
11... Ng4 {[%clk 0:02:45.7]} 12. O-O {[%clk 0:02:26.5]} 12... Nc7 {[%clk
0:02:42.4]} 13. Rae1 {[%clk 0:02:05.7]} 13... a6 {[%clk 0:02:34.4]} 14. Bd3
{[%clk 0:02:01.2]} 14... Ne5 {[%clk 0:02:32.2]} 15. Nxe5 {[%clk 0:01:59.6]}
15... Bxe5 {[%clk 0:02:32]} 16. Bxe5 {[%clk 0:01:58.6]} 16... Rxe5 {[%clk
0:02:32.5]} 17. Qf2 {[%clk 0:01:57.3]} 17... Qe7 {[%clk 0:02:29.1]} 18. b4
{[%clk 0:01:51]} 18... b6 {[%clk 0:02:28.1]} 19. Na4 {[%clk 0:01:36.7]} 19...
Rb8 {[%clk 0:02:24.9]} 20. Rb1 {[%clk 0:01:36.1]} 20... Bd7 {[%clk 0:02:24.8]}
21. Nc3 {[%clk 0:01:34.5]} 21... Ne8 {[%clk 0:01:56.7]} 22. Rb2 {[%clk
0:01:18.4]} 22... Kg7 {[%clk 0:01:42.9]} 23. Rfb1 {[%clk 0:01:12.3]} 23... Rc8
{[%clk 0:01:38.9]} 24. bxc5 {[%clk 0:01:10.9]} 24... bxc5 {[%clk 0:01:38.2]} 25.
Rb7 {[%clk 0:01:06.9]} 25... Qd8 {[%clk 0:01:35.4]} 26. Rf1 {[%clk 0:01:04.5]}
26... f6 {[%clk 0:01:27.9]} 27. Be2 {[%clk 0:00:55.3]} 27... Rc7 {[%clk
0:01:27.6]} 28. Rfb1 {[%clk 0:00:51.6]} 28... Re7 {[%clk 0:01:27.4]} 29. Rb8
{[%clk 0:00:38.2]} 29... Rc8 {[%clk 0:01:23.4]} 30. R8b6 {[%clk 0:00:37.8]}
30... Ra8 {[%clk 0:01:14.2]} 31. Bf3 {[%clk 0:00:33.8]} 31... Bc8 {[%clk
0:01:12]} 32. Qg3 {[%clk 0:00:27]} 32... Raa7 {[%clk 0:01:10.4]} 33. h4 {[%clk
0:00:24.9]} 33... Reb7 {[%clk 0:01:09.2]} 34. Rxb7+ {[%clk 0:00:23.1]} 34...
Rxb7 {[%clk 0:01:09.4]} 35. Rxb7+ {[%clk 0:00:23.1]} 35... Bxb7 {[%clk
0:01:09.6]} 36. h5 {[%clk 0:00:23.7]} 36... Qe7 {[%clk 0:01:07.9]} 37. Qf4
{[%clk 0:00:22.5]} 37... Bc8 {[%clk 0:01:00.2]} 38. Kf2 {[%clk 0:00:21.3]} 38...
Qe5 {[%clk 0:00:59]} 39. Qxe5 {[%clk 0:00:18.9]} 39... fxe5 {[%clk 0:00:59.1]}
40. hxg6 {[%clk 0:00:18.7]} 40... hxg6 {[%clk 0:00:58.5]} 41. Kg3 {[%clk
0:00:18]} 41... Bd7 {[%clk 0:00:58.3]} 42. Bg4 {[%clk 0:00:17]} 42... Bxg4
{[%clk 0:00:51.3]} 43. Kxg4 {[%clk 0:00:17.5]} 43... Kh6 {[%clk 0:00:49.6]} 44.
Na4 {[%clk 0:00:16.9]} 44... Nf6+ {[%clk 0:00:49]} 45. Kf3 {[%clk 0:00:17.6]}
45... g5 {[%clk 0:00:46.8]} 46. Nb6 {[%clk 0:00:17.6]} 46... g4+ {[%clk
0:00:46.8]} 47. Ke3 {[%clk 0:00:18]} 47... Kg5 {[%clk 0:00:47]} 48. Nc8 {[%clk
0:00:18.3]} 48... Ne8 {[%clk 0:00:47.1]} 49. Ne7 {[%clk 0:00:18.5]} 49... Nf6
{[%clk 0:00:40.7]} 50. Nf5 {[%clk 0:00:18.1]} 50... Ne8 {[%clk 0:00:38]} 51. Kf2
{[%clk 0:00:18.2]} 51... Kf4 {[%clk 0:00:38]} 52. Ng3 {[%clk 0:00:12.4]} 52...
Nf6 {[%clk 0:00:37.7]} 53. Ne2+ {[%clk 0:00:11]} 53... Kxe4 {[%clk 0:00:37.2]}
54. Ng3+ {[%clk 0:00:10.9]} 54... Kd3 {[%clk 0:00:32.8]} 55. Nf5 {[%clk
0:00:10.9]} 55... Ne4+ {[%clk 0:00:32.3]} 56. Ke1 {[%clk 0:00:11]} 56... Kxc4
{[%clk 0:00:31.5]} 57. Ne3+ {[%clk 0:00:11.7]} 57... Kd4 {[%clk 0:00:30.9]} 58.
Nxg4 {[%clk 0:00:12.4]} 58... Kxd5 {[%clk 0:00:30.6]} 59. Ne3+ {[%clk
0:00:13.1]} 59... Kd4 {[%clk 0:00:30.7]} 60. Nf5+ {[%clk 0:00:13.7]} 60... Kd3
{[%clk 0:00:29.4]} 61. g4 {[%clk 0:00:14.3]} 61... c4 {[%clk 0:00:29.7]} 62. Kd1
{[%clk 0:00:13.9]} 62... c3 {[%clk 0:00:29.5]} 63. Kc1 {[%clk 0:00:14.3]} 63...
d5 {[%clk 0:00:29.8]} 64. Ne7 {[%clk 0:00:12.4]} 64... d4 {[%clk 0:00:28.5]} 65.
Nc6 {[%clk 0:00:12.7]} 65... Ke2 {[%clk 0:00:25]} 66. Nxe5 {[%clk 0:00:12.6]}
66... d3 {[%clk 0:00:24.9]} 67. Nxd3 {[%clk 0:00:12.1]} 67... Kxd3 {[%clk
0:00:25.2]} 68. Kd1 {[%clk 0:00:12.8]} 68... c2+ {[%clk 0:00:24.7]} 69. Kc1
{[%clk 0:00:13.7]} 69... Nc3 {[%clk 0:00:25]} 0-1

[Event "*** SCC Grand Prix: Titled Tuesday Blitz"]
[Site "Chess.com"]
[Date "2020.08.25"]
[Round "4"]
[White "SlavenPastar"]
[Black "Jabberwockiez"]
[Result "1-0"]
[WhiteElo "2443"]
[BlackElo "2250"]
[TimeControl "180+1"]
[EndTime "10:41:55 PDT"]
[Termination "SlavenPastar won by checkmate"]

1. d4 {[%clk 0:03:00.9]} 1... Nf6 {[%clk 0:02:59.3]} 2. c4 {[%clk 0:02:50.3]}
2... e6 {[%clk 0:02:59]} 3. Nc3 {[%clk 0:02:50]} 3... Bb4 {[%clk 0:02:58.1]} 4.
e3 {[%clk 0:02:50.6]} 4... O-O {[%clk 0:02:57.3]} 5. Bd3 {[%clk 0:02:51.1]} 5...
d5 {[%clk 0:02:53.5]} 6. cxd5 {[%clk 0:02:52]} 6... exd5 {[%clk 0:02:50.8]} 7.
Ne2 {[%clk 0:02:52.2]} 7... Re8 {[%clk 0:02:44.5]} 8. Bd2 {[%clk 0:02:52.2]}
8... c5 {[%clk 0:02:41.4]} 9. Rc1 {[%clk 0:02:48.4]} 9... cxd4 {[%clk
0:02:39.7]} 10. exd4 {[%clk 0:02:45.3]} 10... Bg4 {[%clk 0:02:39.2]} 11. f3
{[%clk 0:02:43.3]} 11... Ne4 {[%clk 0:02:25.3]} 12. Bxe4 {[%clk 0:02:36.4]}
12... dxe4 {[%clk 0:02:21.4]} 13. Nxe4 {[%clk 0:02:26.9]} 13... Bxd2+ {[%clk
0:02:04.9]} 14. Qxd2 {[%clk 0:02:26.2]} 14... Qh4+ {[%clk 0:01:55.6]} 15. N2g3
{[%clk 0:02:02.4]} 15... f5 {[%clk 0:01:44.6]} 16. fxg4 {[%clk 0:01:47.5]} 16...
Rxe4+ {[%clk 0:01:43.6]} 17. Kf1 {[%clk 0:01:35.9]} 17... Qxg4 {[%clk
0:01:37.9]} 18. Rc8+ {[%clk 0:01:28.8]} 18... Kf7 {[%clk 0:01:37]} 19. Nxe4
{[%clk 0:01:24.7]} 19... fxe4 {[%clk 0:01:36.3]} 20. Qf2+ {[%clk 0:01:00.4]}
20... Ke6 {[%clk 0:01:02.9]} 21. d5+ {[%clk 0:00:50.3]} 21... Kxd5 {[%clk
0:00:55.5]} 22. Qc5+ {[%clk 0:00:45.7]} 22... Ke6 {[%clk 0:00:54.2]} 23. Re8+
{[%clk 0:00:44]} 23... Kf7 {[%clk 0:00:44.4]} 24. Qe7+ {[%clk 0:00:39.8]} 24...
Kg6 {[%clk 0:00:43.7]} 25. Qe6+ {[%clk 0:00:32.4]} 25... Qxe6 {[%clk 0:00:42.8]}
26. Rxe6+ {[%clk 0:00:33.3]} 26... Kf7 {[%clk 0:00:39.1]} 27. Rxe4 {[%clk
0:00:33.2]} 27... Nc6 {[%clk 0:00:39.7]} 28. Ke2 {[%clk 0:00:32.7]} 28... Rd8
{[%clk 0:00:36.8]} 29. Rf1+ {[%clk 0:00:32.8]} 29... Kg6 {[%clk 0:00:36.8]} 30.
Ke3 {[%clk 0:00:29.4]} 30... Rd7 {[%clk 0:00:32.9]} 31. Re6+ {[%clk 0:00:25.9]}
31... Kg5 {[%clk 0:00:32.6]} 32. Rf4 {[%clk 0:00:20.6]} 32... g6 {[%clk
0:00:22.1]} 33. g3 {[%clk 0:00:19.4]} 33... Nd8 {[%clk 0:00:17.8]} 34. Ref6
{[%clk 0:00:16.7]} 34... Nc6 {[%clk 0:00:16.9]} 35. Rf7 {[%clk 0:00:14.8]} 35...
Rxf7 {[%clk 0:00:11.4]} 36. Rxf7 {[%clk 0:00:15.7]} 36... Ne5 {[%clk 0:00:10.4]}
37. Rxh7 {[%clk 0:00:14.4]} 37... Nc4+ {[%clk 0:00:10.3]} 38. Kd4 {[%clk
0:00:13.8]} 38... Na5 {[%clk 0:00:09.4]} 39. b4 {[%clk 0:00:12]} 39... Nc6+
{[%clk 0:00:09.4]} 40. Kc5 {[%clk 0:00:11.8]} 40... Nd8 {[%clk 0:00:09.4]} 41.
b5 {[%clk 0:00:11.5]} 41... b6+ {[%clk 0:00:08.8]} 42. Kd6 {[%clk 0:00:10.5]}
42... Kf6 {[%clk 0:00:08]} 43. Kd7 {[%clk 0:00:08.6]} 43... Nf7 {[%clk
0:00:08.9]} 44. Kc6 {[%clk 0:00:06.4]} 44... Ne5+ {[%clk 0:00:08.1]} 45. Kb7
{[%clk 0:00:06.2]} 45... Nc4 {[%clk 0:00:07.3]} 46. Kxa7 {[%clk 0:00:06.4]}
46... Kg5 {[%clk 0:00:07.6]} 47. Kb7 {[%clk 0:00:06.2]} 47... Kg4 {[%clk
0:00:07.7]} 48. Rh8 {[%clk 0:00:06.5]} 48... g5 {[%clk 0:00:07.4]} 49. a4 {[%clk
0:00:07]} 49... Kf3 {[%clk 0:00:06.9]} 50. Rh7 {[%clk 0:00:05.1]} 50... g4
{[%clk 0:00:06.8]} 51. Rh4 {[%clk 0:00:05]} 51... Nd6+ {[%clk 0:00:03.4]} 52.
Kxb6 {[%clk 0:00:04.4]} 52... Nf5 {[%clk 0:00:04.3]} 53. Rh8 {[%clk 0:00:03.8]}
53... Kg2 {[%clk 0:00:05.1]} 54. a5 {[%clk 0:00:04.1]} 54... Nd4 {[%clk
0:00:04.1]} 55. a6 {[%clk 0:00:04.5]} 55... Nf3 {[%clk 0:00:04.3]} 56. a7 {[%clk
0:00:04.9]} 56... Nxh2 {[%clk 0:00:05.2]} 57. Rxh2+ {[%clk 0:00:05.2]} 57...
Kxh2 {[%clk 0:00:06.1]} 58. a8=Q {[%clk 0:00:06.1]} 58... Kxg3 {[%clk
0:00:06.3]} 59. Qg8 {[%clk 0:00:07]} 59... Kh2 {[%clk 0:00:06.6]} 60. Qxg4
{[%clk 0:00:07.6]} 60... Kh1 {[%clk 0:00:07.1]} 61. Kc7 {[%clk 0:00:08.5]} 61...
Kh2 {[%clk 0:00:07.6]} 62. b6 {[%clk 0:00:09.4]} 62... Kh1 {[%clk 0:00:08.5]}
63. b7 {[%clk 0:00:09.2]} 63... Kh2 {[%clk 0:00:09.4]} 64. b8=Q {[%clk
0:00:09.1]} 64... Kh1 {[%clk 0:00:10.3]} 65. Qh8# {[%clk 0:00:09.8]} 1-0

[Event "*** SCC Grand Prix: Titled Tuesday Blitz"]
[Site "Chess.com"]
[Date "2020.08.25"]
[Round "4"]
[White "Efremov_Vlad"]
[Black "KaterinaMiroshnik"]
[Result "0-1"]
[WhiteElo "2205"]
[BlackElo "2418"]
[TimeControl "180+1"]
[EndTime "10:41:55 PDT"]
[Termination "KaterinaMiroshnik won by checkmate"]

1. d4 {[%clk 0:03:00.9]} 1... e6 {[%clk 0:02:59.6]} 2. c4 {[%clk 0:03:01]} 2...
Nf6 {[%clk 0:03:00.5]} 3. Nf3 {[%clk 0:03:00.8]} 3... Bb4+ {[%clk 0:03:00.7]} 4.
Bd2 {[%clk 0:02:59.9]} 4... Be7 {[%clk 0:03:01.2]} 5. Nc3 {[%clk 0:02:55.2]}
5... O-O {[%clk 0:03:02.1]} 6. e4 {[%clk 0:02:53.4]} 6... d6 {[%clk 0:02:54.4]}
7. Bd3 {[%clk 0:02:51.3]} 7... Nbd7 {[%clk 0:02:48.3]} 8. Bf4 {[%clk 0:02:21.4]}
8... Nh5 {[%clk 0:02:44.1]} 9. Bg3 {[%clk 0:02:18.4]} 9... Nxg3 {[%clk 0:02:41]}
10. hxg3 {[%clk 0:02:18.8]} 10... e5 {[%clk 0:02:41.6]} 11. Nd5 {[%clk
0:02:18.2]} 11... c6 {[%clk 0:02:38.3]} 12. Ne3 {[%clk 0:02:08.7]} 12... g6
{[%clk 0:02:32.5]} 13. Ng4 {[%clk 0:01:54.9]} 13... h5 {[%clk 0:02:15.3]} 14.
Ne3 {[%clk 0:01:49.3]} 14... Bf6 {[%clk 0:02:10.9]} 15. dxe5 {[%clk 0:01:34.6]}
15... Nxe5 {[%clk 0:02:11.8]} 16. Nxe5 {[%clk 0:01:33]} 16... Bxe5 {[%clk
0:02:09.5]} 17. Qc2 {[%clk 0:01:19.5]} 17... Qg5 {[%clk 0:02:04.5]} 18. Qd2
{[%clk 0:00:58.7]} 18... Be6 {[%clk 0:01:58]} 19. O-O-O {[%clk 0:00:57.4]} 19...
Qf6 {[%clk 0:01:53.5]} 20. f4 {[%clk 0:00:50.4]} 20... Bd4 {[%clk 0:01:52.9]}
21. f5 {[%clk 0:00:43.3]} 21... Bd7 {[%clk 0:01:33]} 22. g4 {[%clk 0:00:43.1]}
22... Qg5 {[%clk 0:01:27.8]} 23. Nc2 {[%clk 0:00:33.2]} 23... Qxd2+ {[%clk
0:01:26.7]} 24. Rxd2 {[%clk 0:00:33.1]} 24... Be5 {[%clk 0:01:24.8]} 25. Rf2
{[%clk 0:00:26.5]} 25... hxg4 {[%clk 0:01:21.8]} 26. Kb1 {[%clk 0:00:22.5]}
26... Kg7 {[%clk 0:01:19.4]} 27. Ne3 {[%clk 0:00:20.5]} 27... Bd4 {[%clk
0:01:15.9]} 28. Re2 {[%clk 0:00:18.9]} 28... Bxe3 {[%clk 0:01:02.3]} 29. Rxe3
{[%clk 0:00:19.8]} 29... gxf5 {[%clk 0:01:00.7]} 30. exf5 {[%clk 0:00:20.7]}
30... Kf6 {[%clk 0:00:57.5]} 31. Rg3 {[%clk 0:00:20.2]} 31... Kg5 {[%clk
0:00:54.7]} 32. Rf1 {[%clk 0:00:18.5]} 32... f6 {[%clk 0:00:52.1]} 33. Kc2
{[%clk 0:00:17.5]} 33... Rh8 {[%clk 0:00:51.8]} 34. Kd2 {[%clk 0:00:15.7]} 34...
Rae8 {[%clk 0:00:51.8]} 35. Rf2 {[%clk 0:00:13.6]} 35... Re5 {[%clk 0:00:50.8]}
36. Re3 {[%clk 0:00:08.5]} 36... Rh2 {[%clk 0:00:45.8]} 37. Rxe5 {[%clk
0:00:08]} 37... dxe5 {[%clk 0:00:46.7]} 38. Be4 {[%clk 0:00:08]} 38... Rh1
{[%clk 0:00:41.8]} 39. a3 {[%clk 0:00:06.9]} 39... a5 {[%clk 0:00:38.9]} 40. Kc3
{[%clk 0:00:06.6]} 40... Rd1 {[%clk 0:00:35.6]} 41. b4 {[%clk 0:00:06.3]} 41...
axb4+ {[%clk 0:00:35.2]} 42. axb4 {[%clk 0:00:07.2]} 42... Rd4 {[%clk
0:00:35.1]} 43. Bc2 {[%clk 0:00:06.8]} 43... Rf4 {[%clk 0:00:33.2]} 44. Rd2
{[%clk 0:00:06]} 44... Bxf5 {[%clk 0:00:33.4]} 45. Bxf5 {[%clk 0:00:06.6]} 45...
Kxf5 {[%clk 0:00:34.3]} 46. Rd7 {[%clk 0:00:06.9]} 46... b5 {[%clk 0:00:32.1]}
47. cxb5 {[%clk 0:00:06]} 47... cxb5 {[%clk 0:00:33]} 48. Rd5 {[%clk 0:00:06.6]}
48... Rf2 {[%clk 0:00:32.8]} 49. Rxb5 {[%clk 0:00:06.6]} 49... Rxg2 {[%clk
0:00:32.9]} 50. Rd5 {[%clk 0:00:06.5]} 50... g3 {[%clk 0:00:30]} 51. b5 {[%clk
0:00:06.7]} 51... Rg1 {[%clk 0:00:30.2]} 52. b6 {[%clk 0:00:05.7]} 52... Rb1
{[%clk 0:00:30.1]} 53. Rd3 {[%clk 0:00:05.5]} 53... g2 {[%clk 0:00:25.8]} 54.
Rg3 {[%clk 0:00:05.3]} 54... g1=Q {[%clk 0:00:24.5]} 55. Rxg1 {[%clk 0:00:04.9]}
55... Rxg1 {[%clk 0:00:25.4]} 56. b7 {[%clk 0:00:05.6]} 56... Rb1 {[%clk
0:00:24.7]} 57. b8=Q {[%clk 0:00:05.4]} 57... Rxb8 {[%clk 0:00:25.6]} 58. Kc4
{[%clk 0:00:05.8]} 58... Ke4 {[%clk 0:00:25.3]} 59. Kc5 {[%clk 0:00:06.7]} 59...
f5 {[%clk 0:00:25.5]} 60. Kc6 {[%clk 0:00:07.6]} 60... Rb1 {[%clk 0:00:25.9]}
61. Kc7 {[%clk 0:00:08.5]} 61... f4 {[%clk 0:00:26.6]} 62. Kd7 {[%clk
0:00:09.4]} 62... f3 {[%clk 0:00:27.3]} 63. Ke7 {[%clk 0:00:10.3]} 63... f2
{[%clk 0:00:28.1]} 64. Kf7 {[%clk 0:00:11.2]} 64... f1=Q+ {[%clk 0:00:27.4]} 65.
Kg7 {[%clk 0:00:12.1]} 65... Rb2 {[%clk 0:00:27.4]} 66. Kh6 {[%clk 0:00:12.5]}
66... Rg2 {[%clk 0:00:27.2]} 67. Kh7 {[%clk 0:00:12.2]} 67... Qh1# {[%clk
0:00:28.1]} 0-1

[Event "*** SCC Grand Prix: Titled Tuesday Blitz"]
[Site "Chess.com"]
[Date "2020.08.25"]
[Round "4"]
[White "Ranindu2003"]
[Black "hongnhung1234"]
[Result "0-1"]
[WhiteElo "2586"]
[BlackElo "2349"]
[TimeControl "180+1"]
[EndTime "10:41:58 PDT"]
[Termination "hongnhung1234 won by checkmate"]

1. e4 {[%clk 0:02:59.6]} 1... c5 {[%clk 0:03:00]} 2. Nf3 {[%clk 0:02:58.8]} 2...
e6 {[%clk 0:03:00.3]} 3. d4 {[%clk 0:02:59.1]} 3... cxd4 {[%clk 0:03:01.2]} 4.
Bg5 {[%clk 0:02:59.7]} 4... Be7 {[%clk 0:02:57.2]} 5. Bxe7 {[%clk 0:02:57.4]}
5... Nxe7 {[%clk 0:02:58.1]} 6. Nxd4 {[%clk 0:02:57.7]} 6... d5 {[%clk
0:02:55.3]} 7. Nc3 {[%clk 0:02:54.9]} 7... dxe4 {[%clk 0:02:52.1]} 8. Nxe4
{[%clk 0:02:55.8]} 8... O-O {[%clk 0:02:50.6]} 9. c3 {[%clk 0:02:54.4]} 9...
Nbc6 {[%clk 0:02:47.6]} 10. Be2 {[%clk 0:02:32.6]} 10... Nxd4 {[%clk 0:02:44.8]}
11. cxd4 {[%clk 0:02:33.5]} 11... Nf5 {[%clk 0:02:38.1]} 12. O-O {[%clk
0:02:30.9]} 12... Nxd4 {[%clk 0:02:35.8]} 13. Bd3 {[%clk 0:02:29.1]} 13... b6
{[%clk 0:02:32.3]} 14. Qh5 {[%clk 0:02:25.7]} 14... g6 {[%clk 0:02:19.8]} 15.
Qe5 {[%clk 0:02:16.6]} 15... f6 {[%clk 0:02:10]} 16. Qg3 {[%clk 0:02:14.3]}
16... e5 {[%clk 0:02:06.7]} 17. Rad1 {[%clk 0:02:08.7]} 17... Be6 {[%clk
0:02:02.1]} 18. Kh1 {[%clk 0:01:59.2]} 18... Qe7 {[%clk 0:02:00.5]} 19. f4
{[%clk 0:01:58.3]} 19... f5 {[%clk 0:01:42.7]} 20. Ng5 {[%clk 0:01:54.7]} 20...
exf4 {[%clk 0:01:36]} 21. Rxf4 {[%clk 0:01:46.4]} 21... Rad8 {[%clk 0:01:26.6]}
22. Re1 {[%clk 0:01:45.8]} 22... Qd6 {[%clk 0:00:57.5]} 23. Qh4 {[%clk
0:01:14.8]} 23... Rd7 {[%clk 0:00:44.2]} 24. a3 {[%clk 0:01:03.6]} 24... Kh8
{[%clk 0:00:36.4]} 25. h3 {[%clk 0:01:01]} 25... Bg8 {[%clk 0:00:34.9]} 26. Bb1
{[%clk 0:00:44.2]} 26... Ne6 {[%clk 0:00:32.6]} 27. Nxe6 {[%clk 0:00:39.5]}
27... Bxe6 {[%clk 0:00:33.5]} 28. Qh6 {[%clk 0:00:39.3]} 28... Bg8 {[%clk
0:00:28.1]} 29. Rh4 {[%clk 0:00:37.4]} 29... Rfd8 {[%clk 0:00:24.1]} 30. Qc1
{[%clk 0:00:31.4]} 30... Qg3 {[%clk 0:00:20.2]} 31. Ra4 {[%clk 0:00:09.6]} 31...
Qxe1+ {[%clk 0:00:14.7]} 32. Qxe1 {[%clk 0:00:08.9]} 32... Rd1 {[%clk
0:00:15.6]} 33. Qxd1 {[%clk 0:00:06]} 33... Rxd1+ {[%clk 0:00:16.5]} 34. Kh2
{[%clk 0:00:06.7]} 34... Rxb1 {[%clk 0:00:16.7]} 35. b4 {[%clk 0:00:07.6]} 35...
Bc4 {[%clk 0:00:13.4]} 36. Rxa7 {[%clk 0:00:07.6]} 36... b5 {[%clk 0:00:13.8]}
37. Rc7 {[%clk 0:00:07.6]} 37... Kg8 {[%clk 0:00:13.2]} 38. Kg3 {[%clk
0:00:08.1]} 38... Rb3+ {[%clk 0:00:13.2]} 39. Kf4 {[%clk 0:00:08.2]} 39... Rxa3
{[%clk 0:00:14.1]} 40. Ke5 {[%clk 0:00:08.2]} 40... Re3+ {[%clk 0:00:14.2]} 41.
Kf6 {[%clk 0:00:08.7]} 41... Re6+ {[%clk 0:00:14.7]} 42. Kg5 {[%clk 0:00:09.4]}
42... Rd6 {[%clk 0:00:12.8]} 43. h4 {[%clk 0:00:09.8]} 43... Kf8 {[%clk
0:00:13]} 44. Rxh7 {[%clk 0:00:09]} 44... Bf7 {[%clk 0:00:13.3]} 45. Rh8+ {[%clk
0:00:08.3]} 45... Kg7 {[%clk 0:00:13.1]} 46. Rb8 {[%clk 0:00:09.2]} 46... Rd5
{[%clk 0:00:12.2]} 47. Kf4 {[%clk 0:00:08.9]} 47... Rd4+ {[%clk 0:00:12.3]} 48.
Ke5 {[%clk 0:00:09.5]} 48... Rxb4 {[%clk 0:00:13.2]} 49. Rb7 {[%clk 0:00:10.1]}
49... Re4+ {[%clk 0:00:13.3]} 50. Kd6 {[%clk 0:00:09.4]} 50... b4 {[%clk
0:00:14.2]} 51. g3 {[%clk 0:00:07.9]} 51... b3 {[%clk 0:00:14.5]} 52. Kd7 {[%clk
0:00:07.6]} 52... Re2 {[%clk 0:00:13.8]} 53. Kd8 {[%clk 0:00:07.4]} 53... b2
{[%clk 0:00:14.1]} 54. h5 {[%clk 0:00:07.9]} 54... gxh5 {[%clk 0:00:13.9]} 55.
Kd7 {[%clk 0:00:07.3]} 55... Kf6 {[%clk 0:00:13.2]} 56. Kd6 {[%clk 0:00:07.8]}
56... Ba2 {[%clk 0:00:11.1]} 57. Ra7 {[%clk 0:00:07.9]} 57... b1=Q {[%clk
0:00:10.9]} 58. Ra8 {[%clk 0:00:08.8]} 58... Qb6+ {[%clk 0:00:10.7]} 59. Kd7
{[%clk 0:00:09]} 59... Rd2+ {[%clk 0:00:11.1]} 60. Ke8 {[%clk 0:00:09.5]} 60...
Qe6+ {[%clk 0:00:10.5]} 61. Kf8 {[%clk 0:00:10]} 61... Qf7# {[%clk 0:00:11.4]}
0-1

[Event "*** SCC Grand Prix: Titled Tuesday Blitz"]
[Site "Chess.com"]
[Date "2020.08.25"]
[Round "4"]
[White "HanSchut"]
[Black "Nafania1"]
[Result "0-1"]
[WhiteElo "2246"]
[BlackElo "2443"]
[TimeControl "180+1"]
[EndTime "10:41:58 PDT"]
[Termination "Nafania1 won on time"]

1. e4 {[%clk 0:03:00.9]} 1... e6 {[%clk 0:03:00]} 2. d4 {[%clk 0:03:00.9]} 2...
d5 {[%clk 0:03:00.4]} 3. Nd2 {[%clk 0:02:56.1]} 3... Be7 {[%clk 0:03:00.2]} 4.
Bd3 {[%clk 0:02:54.5]} 4... c5 {[%clk 0:03:00]} 5. dxc5 {[%clk 0:02:53.7]} 5...
Nf6 {[%clk 0:02:59.9]} 6. Qe2 {[%clk 0:02:53.6]} 6... O-O {[%clk 0:02:59.7]} 7.
Ngf3 {[%clk 0:02:53.9]} 7... a5 {[%clk 0:03:00]} 8. O-O {[%clk 0:02:53.6]} 8...
Na6 {[%clk 0:03:00.3]} 9. exd5 {[%clk 0:02:48.2]} 9... exd5 {[%clk 0:02:59.8]}
10. c3 {[%clk 0:02:47.9]} 10... Nxc5 {[%clk 0:02:59.2]} 11. Bc2 {[%clk
0:02:48.5]} 11... Re8 {[%clk 0:02:47.6]} 12. Nb3 {[%clk 0:02:37.7]} 12... Bd6
{[%clk 0:02:45.7]} 13. Qd1 {[%clk 0:02:34.8]} 13... Nce4 {[%clk 0:02:44.7]} 14.
Nbd4 {[%clk 0:02:24.8]} 14... Bg4 {[%clk 0:02:44.3]} 15. h3 {[%clk 0:02:23.9]}
15... Bh5 {[%clk 0:02:44.5]} 16. Be3 {[%clk 0:02:06.3]} 16... Bb8 {[%clk
0:02:32.6]} 17. Re1 {[%clk 0:01:52.4]} 17... h6 {[%clk 0:02:20.4]} 18. Qd3
{[%clk 0:01:28.7]} 18... Bg6 {[%clk 0:02:13.8]} 19. Qf1 {[%clk 0:01:16.9]} 19...
a4 {[%clk 0:01:58.6]} 20. Rad1 {[%clk 0:01:13.8]} 20... a3 {[%clk 0:01:58.1]}
21. Bc1 {[%clk 0:01:04.9]} 21... axb2 {[%clk 0:01:56.9]} 22. Bxb2 {[%clk
0:01:05.3]} 22... Rxa2 {[%clk 0:01:52.1]} 23. Rb1 {[%clk 0:01:02.5]} 23... Qc7
{[%clk 0:01:40.4]} 24. Bb3 {[%clk 0:00:55.3]} 24... Ra8 {[%clk 0:01:29.3]} 25.
Rbc1 {[%clk 0:00:52]} 25... Qb6 {[%clk 0:01:23.9]} 26. Qb5 {[%clk 0:00:48.2]}
26... Qxb5 {[%clk 0:01:17.7]} 27. Nxb5 {[%clk 0:00:49.1]} 27... Bf4 {[%clk
0:01:17.6]} 28. Rcd1 {[%clk 0:00:46.7]} 28... Rad8 {[%clk 0:01:13.4]} 29. g3
{[%clk 0:00:41.6]} 29... Bb8 {[%clk 0:01:12.3]} 30. Kg2 {[%clk 0:00:35.9]} 30...
Nc5 {[%clk 0:01:12.3]} 31. Rxe8+ {[%clk 0:00:22.7]} 31... Rxe8 {[%clk
0:01:12.3]} 32. Ba2 {[%clk 0:00:21.5]} 32... Be4 {[%clk 0:01:08.5]} 33. Nd4
{[%clk 0:00:19.6]} 33... Nd3 {[%clk 0:01:08.3]} 34. Bc1 {[%clk 0:00:16.7]} 34...
Ne5 {[%clk 0:01:08.2]} 35. Be3 {[%clk 0:00:13.4]} 35... Nc4 {[%clk 0:01:07.6]}
36. Bb1 {[%clk 0:00:13.1]} 36... Bxb1 {[%clk 0:01:04.9]} 37. Rxb1 {[%clk
0:00:13.2]} 37... Nxe3+ {[%clk 0:01:04.1]} 38. fxe3 {[%clk 0:00:14.1]} 38...
Rxe3 {[%clk 0:01:04.2]} 39. Rxb7 {[%clk 0:00:14.3]} 39... Bd6 {[%clk 0:01:01.5]}
40. Nf5 {[%clk 0:00:13]} 40... Re6 {[%clk 0:00:55.2]} 41. N3d4 {[%clk
0:00:12.4]} 41... Re3 {[%clk 0:00:45.2]} 42. Nxe3 {[%clk 0:00:12.5]} 42... Ne4
{[%clk 0:00:42.1]} 43. Nef5 {[%clk 0:00:13]} 43... Be5 {[%clk 0:00:39.3]} 44.
Nc6 {[%clk 0:00:11.5]} 44... Bxc3 {[%clk 0:00:39]} 45. Nce7+ {[%clk 0:00:11.4]}
45... Kh7 {[%clk 0:00:38.7]} 46. Nxd5 {[%clk 0:00:11.3]} 46... Be5 {[%clk
0:00:37.7]} 47. Rxf7 {[%clk 0:00:10.9]} 47... Kg6 {[%clk 0:00:36.1]} 48. Re7
{[%clk 0:00:05.3]} 48... Kxf5 {[%clk 0:00:35.3]} 49. Re8 {[%clk 0:00:05.1]}
49... Nd6 {[%clk 0:00:34.3]} 50. Ra8 {[%clk 0:00:03.3]} 50... Ke6 {[%clk
0:00:32.5]} 51. Ne3 {[%clk 0:00:03.7]} 51... Bd4 {[%clk 0:00:32.1]} 52. Ng4
{[%clk 0:00:04.3]} 52... h5 {[%clk 0:00:31.6]} 53. Nf2 {[%clk 0:00:04.3]} 53...
Bxf2 {[%clk 0:00:31.1]} 54. Ra6 {[%clk 0:00:04.8]} 54... Bc5 {[%clk 0:00:30.2]}
55. g4 {[%clk 0:00:04.8]} 55... h4 {[%clk 0:00:29.6]} 56. Kf3 {[%clk 0:00:05.5]}
56... g5 {[%clk 0:00:29.3]} 57. Rc6 {[%clk 0:00:04.6]} 57... Kd5 {[%clk
0:00:29.1]} 58. Rc7 {[%clk 0:00:04.1]} 58... Nc4 {[%clk 0:00:28.8]} 59. Rg7
{[%clk 0:00:03.9]} 59... Ne5+ {[%clk 0:00:28.7]} 60. Ke2 {[%clk 0:00:03.7]}
60... Ke4 {[%clk 0:00:27.1]} 61. Rxg5 {[%clk 0:00:03.7]} 61... Be7 {[%clk
0:00:25]} 62. Rh5 {[%clk 0:00:03.9]} 62... Kf4 {[%clk 0:00:24.2]} 63. Kd2 {[%clk
0:00:02.2]} 63... Nf3+ {[%clk 0:00:23.4]} 64. Kd3 {[%clk 0:00:01.8]} 64... Kg3
{[%clk 0:00:22.3]} 0-1